bitfinex/quotes_ETHUSD_20241101
["timestamp","ask_amount","ask_price","bid_price","bid_amount"]
[1730463122978,3.9673,2520.6,2520.5,0.06599275]
[1730463123596,3.96716,2520.7,2520.5,0.06599275]
[1730463124613,3.96715,2520.7,2520.5,0.06599275]
[1730463125687,3.9673,2520.6,2520.5,0.06599275]
[1730463127485,3.96715,2520.7,2520.5,0.06599275]
[1730463127929,3.967,2520.8,2520.5,0.06599275]
[1730463128095,3.967,2520.8,2520.5,1.8838992]
[1730463128096,3.9672,2520.7,2520.5,1.8838992]
[1730463128583,3.967,2520.8,2520.5,1.8838992]
[1730463128788,7.93414,2520.8,2520.5,1.8838992]
[1730463128988,3.967,2520.8,2520.5,1.8838992]
[1730463129884,7.93412,2520.8,2520.5,1.8838992]
[1730463130102,3.967,2520.8,2520.5,1.8838992]
[1730463130323,7.93408,2520.8,2520.5,1.8838992]
[1730463130516,3.967,2520.8,2520.5,1.8838992]
[1730463130925,7.93414,2520.8,2520.5,1.81790645]
[1730463131424,3.96719,2520.7,2520.6,0.06574925]
[1730463132810,7.94820752,2521.3,2520.6,0.06574925]
[1730463132811,3.96664,2521.1,2520.7,4.7663]
[1730463132993,3.96639,2521.2,2520.8,5.78488645]
[1730463133196,3.9664,2521.2,2520.9,1.88324524]
[1730463133708,3.96631,2521.3,2521.0,0.7992]
[1730463133933,4.837719,2521.3,2521.0,0.7992]
[1730463134090,4.837719,2521.3,2521.1,0.06515673]
[1730463135432,8.804019,2521.3,2521.1,0.06515673]
[1730463135720,4.837709,2521.3,2521.1,0.06515673]
[1730463135892,3.9663,2521.3,2521.1,0.06515673]
[1730463136091,7.93263,2521.3,2521.1,0.06515673]
[1730463136291,0.7818,2521.6,2521.1,0.06515673]
[1730463136517,3.96629,2521.3,2521.1,0.06515673]
[1730463136729,3.96636,2521.2,2521.1,0.06515673]
[1730463136893,5.572716,2521.2,2521.1,0.06515673]
[1730463137093,3.96668,2521.0,2520.6,5.78511645]
[1730463137317,7.93347,2521.0,2520.6,1.81790645]
[1730463137493,3.96668,2521.0,2520.6,1.81790645]
[1730463138234,7.93351,2521.0,2520.6,1.81790645]
[1730463138592,3.96668,2521.0,2520.6,1.81790645]
[1730463139097,3.96668,2521.0,2520.6,5.78516645]
[1730463139509,4.7796,2521.2,2520.8,1.81790645]
[1730463139837,3.9666,2521.1,2520.8,1.81790645]
[1730463141109,3.96674,2521.0,2520.6,6.8383801]
[1730463141332,3.96674,2521.0,2520.6,5.78519645]
[1730463141728,3.96654,2521.1,2520.6,5.78519645]
[1730463142517,3.96654,2521.1,2520.7,3.96714]
[1730463142721,3.96635,2521.3,2520.8,2.60750645]
[1730463142908,3.96652,2521.2,2520.8,2.60750645]
[1730463143351,3.96653,2521.1,2520.8,2.60750645]
[1730463143715,3.96648,2521.2,2520.8,2.60750645]
[1730463143919,3.96663,2521.1,2520.8,2.60750645]
[1730463144520,3.96668,2521.0,2520.6,6.57478645]
[1730463145926,7.93343,2521.0,2520.6,6.57478645]
[1730463146120,3.96668,2521.0,2520.6,6.57478645]
[1730463146462,4.79679,2521.2,2520.7,3.96714]
[1730463146463,3.96655,2521.1,2520.7,3.96714]
[1730463146751,3.96655,2521.1,2520.7,5.78504645]
[1730463147157,3.96642,2521.2,2520.8,4.74867]
[1730463147322,7.93288,2521.2,2520.8,4.74867]
[1730463147521,3.96642,2521.2,2520.8,4.74867]
[1730463148075,3.96652,2521.1,2520.8,0.7817]
[1730463148754,3.96675,2521.0,2520.7,1.81790645]
[1730463149469,3.9669,2520.9,2520.6,0.7681]
[1730463149621,3.9669,2520.9,2520.8,0.06512889]
[1730463149815,3.9669,2520.9,2520.6,0.7681]
[1730463150163,3.9669,2520.9,2520.8,0.06512889]
[1730463150356,3.9669,2520.9,2520.7,0.06523126]
[1730463150653,3.9669,2520.9,2520.8,0.06515658]
[1730463150856,3.9669,2520.9,2520.6,0.7681]
[1730463151049,3.96675,2521.0,2520.8,0.06515658]
[1730463151258,3.96675,2521.0,2520.6,4.7354]
[1730463151421,0.7776,2521.1,2520.9,0.06508192]
[1730463151619,3.96654,2521.1,2520.7,3.96712]
[1730463151853,3.96654,2521.1,2521.0,0.06500725]
[1730463152030,3.96654,2521.1,2520.7,1.81790645]
[1730463152220,3.96654,2521.1,2521.0,0.06499466]
[1730463152453,3.96654,2521.1,2520.7,1.81790645]
[1730463152630,3.96668,2521.0,2520.7,1.81790645]
[1730463152833,3.96652,2521.1,2520.7,5.78503645]
[1730463153141,3.96668,2521.0,2520.7,1.81790645]
[1730463153651,3.96684,2520.9,2520.6,0.7681]
[1730463153857,3.96684,2520.9,2520.8,0.06514903]
[1730463154018,3.96684,2520.9,2520.6,0.7681]
[1730463154225,3.96684,2520.9,2520.8,0.065144]
[1730463154591,3.96686,2520.9,2520.6,0.7681]
[1730463154737,3.96686,2520.9,2520.8,0.06511892]
[1730463155237,3.96686,2520.9,2520.6,0.7681]
[1730463155429,3.96674,2521.0,2520.8,0.06511892]
[1730463155629,3.96674,2521.0,2520.6,0.7681]
[1730463155839,3.96674,2521.0,2520.9,0.06504425]
[1730463156160,3.96674,2521.0,2520.6,4.73538]
[1730463156473,3.96649,2521.2,2521.0,0.8257]
[1730463156963,3.96649,2521.2,2521.1,0.064905]
[1730463157336,4.51649,2521.2,2521.1,0.064905]
[1730463160349,4.51605,2521.4,2521.1,1.88281145]
[1730463161547,3.96621,2521.3,2521.1,1.88281145]
[1730463163178,3.96621,2521.3,2521.1,0.064905]
[1730463165762,4.51619,2521.4,2521.1,0.064905]
[1730463166172,3.96622,2521.3,2521.1,0.064905]
[1730463166359,3.96597,2521.5,2521.1,0.064905]
[1730463166566,3.96607,2521.4,2521.1,0.064905]
[1730463172578,4.51598,2521.5,2521.1,4.031315]
[1730463172756,4.51598,2521.5,2521.1,5.84922145]
[1730463173265,0.55,2521.6,2521.2,0.7544]
[1730463173468,3.96555,2521.8,2521.4,4.75292]
[1730463173859,3.96555,2521.8,2521.5,0.06307362]
[1730463175203,4.79593,2521.9,2521.5,1.88098007]
[1730463175559,4.79593,2521.9,2521.5,5.84680007]
[1730463175995,3.96546,2521.8,2521.5,1.88098007]
[1730463176361,3.96546,2521.8,2521.5,0.06307362]
[1730463176574,3.9656,2521.7,2521.5,0.06307362]
[1730463176785,4.79587,2521.9,2521.5,0.06307362]
[1730463176967,3.96545,2521.8,2521.5,0.06307362]
[1730463177279,3.96545,2521.8,2521.5,2.94098408]
[1730463177995,3.96545,2521.8,2521.5,1.12307763]
[1730463178295,3.96559,2521.7,2521.5,0.06307362]
[1730463180770,0.55,2521.8,2521.5,0.06307362]
[1730463181391,3.96534,2521.9,2521.5,4.02890362]
[1730463181600,4.79353,2522.1,2521.7,1.81790645]
[1730463181909,3.96518,2522.0,2521.8,0.06267106]
[1730463182208,3.96518,2522.0,2521.7,1.81790645]
[1730463182372,3.96518,2522.0,2521.9,0.06259645]
[1730463182570,3.96518,2522.0,2521.8,0.06267106]
[1730463182790,3.96518,2522.0,2521.9,0.06259645]
[1730463183616,3.96518,2522.0,2521.6,4.78542]
[1730463183787,3.96518,2522.0,2521.9,0.06259645]
[1730463184421,3.96518,2522.0,2521.6,4.78542]
[1730463184641,3.96518,2522.0,2521.9,0.06259645]
[1730463185123,3.96518,2522.0,2521.6,4.78542]
[1730463185301,3.96503,2522.1,2521.9,0.06259645]
[1730463185502,3.96503,2522.1,2521.7,3.96557]
[1730463185796,4.51503,2522.1,2522.0,0.06252185]
[1730463186109,4.51503,2522.1,2522.0,0.06248662]
[1730463186313,4.51503,2522.1,2521.7,1.81790645]
[1730463186489,4.51503,2522.1,2522.0,0.06248662]
[1730463186684,4.51503,2522.1,2521.7,1.81790645]
[1730463186884,4.51503,2522.1,2522.0,0.0624841]
[1730463187213,3.96481,2522.2,2521.9,2.60760645]
[1730463187379,3.96481,2522.2,2522.0,0.0624841]
[1730463187888,3.96494,2522.1,2522.0,0.0624841]
[1730463188319,3.96464,2522.3,2522.0,0.0624841]
[1730463188726,3.96482,2522.2,2522.0,0.0624841]
[1730463189407,3.96494,2522.1,2522.0,0.0624841]
[1730463190113,3.96517,2522.0,2521.6,3.96571]
[1730463190319,3.96517,2522.0,2521.5,6.56023645]
[1730463190524,7.9304,2522.0,2521.5,6.56023645]
[1730463190703,7.93036,2522.0,2521.5,10.52602645]
[1730463190903,3.96517,2522.0,2521.6,3.9657]
[1730463191418,3.96517,2522.0,2521.6,5.01828965]
[1730463191621,3.96517,2522.0,2521.7,1.81790645]
[1730463191824,3.96517,2522.0,2521.8,0.7514]
[1730463192195,4.75948,2522.2,2521.8,4.71679]
[1730463192196,3.96485,2522.2,2521.8,4.71679]
[1730463192395,7.92977,2522.2,2521.8,4.71679]
[1730463192935,3.96507,2522.1,2521.8,0.7514]
[1730463194805,3.96507,2522.1,2521.9,0.06241778]
[1730463201435,3.96485,2522.2,2521.9,0.06241778]
[1730463201617,7.92976,2522.2,2521.9,0.06241778]
[1730463201927,3.96502,2522.1,2521.9,0.06241778]
[1730463204138,1.3046,2522.4,2521.9,0.06241778]
[1730463204139,3.96469,2522.3,2521.9,5.84551423]
[1730463204324,3.96469,2522.3,2521.9,6.50520565]
[1730463205653,3.96469,2522.3,2522.0,0.7671]
[1730463206032,3.96469,2522.3,2522.1,0.06225854]
[1730463207346,3.9646,2522.4,2522.1,0.06225854]
[1730463207546,3.96465,2522.3,2522.1,0.06225854]
[1730463207753,3.96454,2522.4,2522.1,0.78947418]
[1730463208522,3.96465,2522.3,2522.1,0.78947418]
[1730463209539,3.96466,2522.3,2522.1,0.78947418]
[1730463210226,3.96479,2522.2,2522.1,0.78947418]
[1730463212191,3.96479,2522.2,2522.1,0.06225854]
[1730463212657,3.96479,2522.2,2521.8,4.79681]
[1730463212822,3.96479,2522.2,2522.1,0.0622032]
[1730463213023,3.96479,2522.2,2521.8,4.79681]
[1730463213224,3.96479,2522.2,2522.1,0.0622032]
[1730463213424,3.96479,2522.2,2521.8,0.8314]
[1730463213734,3.96479,2522.2,2521.9,0.26493065]
[1730463213735,3.96496,2522.1,2521.9,0.26493065]
[1730463213937,3.96496,2522.1,2521.9,0.32728305]
[1730463214822,3.96482,2522.2,2521.9,0.32728305]
[1730463215038,3.96501,2522.1,2521.9,0.32728305]
[1730463217563,3.96479,2522.2,2521.9,0.32728305]
[1730463220436,3.96479,2522.2,2521.9,0.0623524]
[1730463227692,3.96502,2522.1,2521.9,0.0623524]
[1730463227894,3.96481,2522.2,2521.9,0.0623524]
[1730463229196,3.96469,2522.3,2521.9,4.0274924]
[1730463229363,3.96453,2522.4,2521.9,4.0274924]
[1730463229563,3.96463,2522.3,2521.9,4.0274924]
[1730463231425,3.96479,2522.2,2521.9,4.0274924]
[1730463231729,3.96466,2522.3,2521.9,4.0274924]
[1730463231918,7.92941,2522.3,2521.9,4.0274924]
[1730463232424,3.96466,2522.3,2521.9,4.0274924]
[1730463233722,3.96435,2522.5,2522.0,0.9929]
[1730463233902,3.96435,2522.5,2522.1,3.96486]
[1730463234109,3.96435,2522.5,2522.1,7.99189791]
[1730463234285,4.77889,2522.7,2522.3,0.8257]
[1730463234491,0.55,2522.6,2522.4,0.06193415]
[1730463234918,3.96391,2522.8,2522.4,4.02638415]
[1730463235098,3.96391,2522.8,2522.4,0.06193415]
[1730463235503,3.96391,2522.8,2522.4,4.02638415]
[1730463235717,3.96391,2522.8,2522.4,0.06193415]
[1730463235901,3.96404,2522.7,2522.4,0.06193415]
[1730463236213,3.96391,2522.8,2522.4,4.69335821]
[1730463236611,7.92784,2522.8,2522.4,4.69335821]
[1730463236813,3.96401,2522.7,2522.4,0.72894821]
[1730463237127,3.96391,2522.8,2522.4,0.72894821]
[1730463237128,3.96391,2522.8,2522.4,4.69338821]
[1730463237359,3.96387,2522.8,2522.4,4.69338821]
[1730463237558,3.96387,2522.8,2522.5,1.12337834]
[1730463237764,4.75165,2522.9,2522.5,1.18521277]
[1730463237961,4.75167,2522.9,2522.5,1.18521277]
[1730463238263,4.75167,2522.9,2522.5,5.14952277]
[1730463238563,3.96391,2522.8,2522.5,1.18521277]
[1730463238934,3.96391,2522.8,2522.6,0.7768]
[1730463239173,3.96391,2522.8,2522.6,0.83855986]
[1730463239730,7.92785,2522.8,2522.6,0.83855986]
[1730463240048,3.96391,2522.8,2522.6,0.83855986]
[1730463240855,0.55,2522.9,2522.6,0.83855986]
[1730463241165,4.51376,2522.9,2522.6,0.83855986]
[1730463241983,3.96386,2522.8,2522.6,0.83855986]
[1730463242264,4.51376,2522.9,2522.6,0.83855986]
[1730463242461,8.47758,2522.9,2522.6,0.83855986]
[1730463242664,3.96374,2522.9,2522.6,0.83855986]
[1730463243362,3.96386,2522.8,2522.6,0.83855986]
[1730463243729,3.964,2522.7,2522.6,0.83855986]
[1730463245196,3.96385,2522.8,2522.6,0.83855986]
[1730463245490,7.92784,2522.8,2522.6,0.83855986]
[1730463245797,3.96385,2522.8,2522.6,0.83855986]
[1730463245954,3.964,2522.7,2522.6,0.83855986]
[1730463246563,3.96385,2522.8,2522.6,0.83855986]
[1730463247159,7.92781,2522.8,2522.6,0.83855986]
[1730463247394,3.964,2522.7,2522.6,0.83855986]
[1730463247598,3.96385,2522.8,2522.6,0.83855986]
[1730463247894,7.9278,2522.8,2522.6,0.83855986]
[1730463248276,3.964,2522.7,2522.6,0.83855986]
[1730463250418,3.964,2522.7,2522.6,0.06175986]
[1730463250700,3.964,2522.7,2522.4,0.7952]
[1730463250906,3.96417,2522.6,2522.4,0.7952]
[1730463252198,3.96402,2522.7,2522.4,0.7952]
[1730463252628,7.9281,2522.7,2522.4,0.7952]
[1730463253829,7.92811,2522.7,2522.4,0.7952]
[1730463254000,3.96388,2522.8,2522.4,4.75966]
[1730463254201,3.96388,2522.8,2522.5,1.81790645]
[1730463254934,3.96388,2522.8,2522.6,0.06156372]
[1730463255817,3.964,2522.7,2522.6,0.06156372]
[1730463256334,3.96387,2522.8,2522.6,0.06156372]
[1730463258539,0.55,2523.0,2522.7,5.78190645]
[1730463258740,3.96355,2523.0,2522.9,1.81790645]
[1730463258944,3.9634,2523.1,2522.9,1.81790645]
[1730463259145,3.9634,2523.1,2522.9,1.87905288]
[1730463259309,3.96344,2523.1,2522.9,1.87905288]
[1730463262343,4.51325,2523.2,2522.9,1.87905288]
[1730463263666,3.96325,2523.2,2522.9,1.87905288]
[1730463264752,3.96325,2523.2,2523.0,0.8145]
[1730463265062,3.96325,2523.2,2523.0,0.87557189]
[1730463265206,0.55,2523.3,2523.0,0.87557189]
[1730463265413,3.9631,2523.3,2523.1,1.81790645]
[1730463265647,3.9631,2523.3,2523.0,0.87557189]
[1730463265825,3.9631,2523.3,2523.2,0.06090019]
[1730463266025,3.9631,2523.3,2523.1,0.06097472]
[1730463266256,3.9631,2523.3,2523.2,0.06090019]
[1730463266747,3.9631,2523.3,2523.0,0.8145]
[1730463267042,3.9631,2523.3,2523.2,0.06090019]
[1730463267257,3.9631,2523.3,2523.1,0.06097472]
[1730463267500,4.51299,2523.4,2523.2,0.06090019]
[1730463267652,7.92601,2523.4,2523.2,0.06090019]
[1730463267959,3.96299,2523.4,2523.3,0.06082566]
[1730463268302,3.96299,2523.4,2523.1,1.81790645]
[1730463268596,3.96299,2523.4,2523.2,0.06090019]
[1730463270157,3.96277,2523.5,2523.2,0.06090019]
[1730463271182,3.96291,2523.4,2523.2,0.06090019]
[1730463272707,3.96272,2523.6,2523.2,0.06090019]
[1730463272915,3.96282,2523.5,2523.2,0.06090019]
[1730463273275,3.96293,2523.4,2523.2,0.06090019]
[1730463273689,3.96306,2523.3,2523.2,0.06090019]
[1730463274178,3.96306,2523.3,2523.0,0.8145]
[1730463274501,3.96306,2523.3,2523.2,0.06074939]
[1730463274704,3.96322,2523.2,2523.1,0.06082393]
[1730463274881,3.96337,2523.1,2523.0,0.8145]
[1730463275081,3.96407,2522.7,2522.4,0.7757]
[1730463275280,4.75648,2522.9,2522.4,0.7757]
[1730463275578,3.96392,2522.8,2522.4,4.74008]
[1730463275802,3.96392,2522.8,2522.4,5.79234165]
[1730463276500,3.96392,2522.8,2522.4,1.82796165]
[1730463276708,3.96402,2522.7,2522.4,1.82796165]
[1730463276892,3.96392,2522.8,2522.4,1.82796165]
[1730463277381,3.96392,2522.8,2522.4,0.7757]
[1730463277585,3.96408,2522.7,2522.4,0.7757]
[1730463280910,3.96418,2522.6,2522.4,0.7757]
[1730463281074,3.96416,2522.6,2522.4,0.7757]
[1730463281977,0.7927,2522.9,2522.4,0.7757]
[1730463282185,3.96409,2522.7,2522.4,0.7757]
[1730463283414,7.92823,2522.7,2522.4,0.7757]
[1730463283913,3.96409,2522.7,2522.4,0.7757]
[1730463284282,7.9282,2522.7,2522.4,0.7757]
[1730463284818,3.96416,2522.6,2522.5,0.05757916]
[1730463285517,3.96416,2522.6,2522.3,1.81790645]
[1730463285680,3.96416,2522.6,2522.5,0.05757916]
[1730463285878,4.51432,2522.5,2522.4,0.05765374]
[1730463286083,4.51432,2522.5,2522.0,0.25847269]
[1730463286084,3.96494,2522.1,2522.0,0.25847269]
[1730463288020,5.26774,2522.1,2522.0,0.199]
[1730463288198,6.37278364,2522.1,2522.0,0.199]
[1730463291601,5.82278364,2522.1,2522.0,0.199]
[1730463291887,3.96494,2522.1,2522.0,0.199]
[1730463292307,3.96494,2522.1,2522.0,0.2496097]
[1730463292986,4.51494,2522.1,2522.0,0.2496097]
[1730463293192,4.51494,2522.1,2522.0,0.199]
[1730463293193,5.29864,2522.1,2522.0,0.199]
[1730463297150,5.29864,2522.1,2522.0,0.24987627]
[1730463297324,6.40677365,2522.1,2522.0,0.199]
[1730463298526,6.40677365,2522.1,2522.0,0.24987627]
[1730463300559,3.96494,2522.1,2522.0,0.24987627]
[1730463301775,5.29264,2522.1,2522.0,0.24987627]
[1730463303756,8.29264,2522.1,2522.0,0.24987627]
[1730463303940,8.29264,2522.1,2522.0,0.199]
[1730463303941,8.31534,2522.1,2522.0,0.199]
[1730463316893,4.51494,2522.1,2522.0,0.199]
[1730463317261,4.51494,2522.1,2522.0,0.25038932]
[1730463320090,4.51494,2522.1,2522.0,0.199]
[1730463320696,4.51494,2522.1,2522.0,0.25035159]
[1730463320999,4.51494,2522.1,2522.0,1.03635159]
[1730463321383,3.96494,2522.1,2522.0,1.03635159]
[1730463324697,3.9648,2522.2,2522.0,1.03635159]
[1730463325204,3.96494,2522.1,2522.0,1.03635159]
[1730463326164,3.9648,2522.2,2522.0,1.03635159]
[1730463326367,7.92969,2522.2,2522.0,1.03635159]
[1730463326577,3.9648,2522.2,2522.0,1.03635159]
[1730463327090,3.96494,2522.1,2522.0,1.03635159]
[1730463333747,3.9648,2522.2,2522.0,1.03635159]
[1730463333894,3.9648,2522.2,2522.0,1.53652475]
[1730463334635,3.96494,2522.1,2522.0,1.03635159]
[1730463335130,3.96494,2522.1,2522.0,0.25035159]
[1730463336806,4.51494,2522.1,2522.0,0.25035159]
[1730463342251,0.7738,2522.7,2522.1,0.7506]
[1730463342406,3.9644,2522.5,2522.3,0.7506]
[1730463342607,3.9644,2522.5,2522.4,0.05091483]
[1730463343548,7.09850645,2522.5,2522.4,0.05091483]
[1730463343916,7.09850645,2522.5,2522.0,0.199]
[1730463343917,3.96494,2522.2,2522.0,0.199]
[1730463344252,4.51494,2522.2,2522.1,0.0511084]
[1730463346658,4.5147,2522.3,2522.1,0.0511084]
[1730463347455,0.55,2522.3,2522.2,0.7978]
[1730463347669,4.51466,2522.3,2522.2,0.84883381]
[1730463348224,3.96466,2522.3,2522.2,0.84883381]
[1730463348940,4.51451,2522.4,2522.2,0.84883381]
[1730463349321,3.96463,2522.3,2522.2,0.84883381]
[1730463350919,3.96463,2522.3,2522.2,0.05103381]
[1730463351323,3.96485,2522.2,2522.0,0.9615]
[1730463352058,7.92937,2522.3,2522.0,0.9615]
[1730463352258,7.92941,2522.3,2522.0,0.9615]
[1730463352430,3.96465,2522.3,2522.0,0.9615]
[1730463352760,3.96465,2522.3,2522.0,1.454162]
[1730463353142,3.96485,2522.2,2522.0,0.9615]
[1730463353963,3.96482,2522.2,2522.0,0.9615]
[1730463354454,3.96494,2522.1,2522.0,0.9615]
[1730463354663,3.96494,2522.1,2522.0,0.199]
[1730463355538,4.51494,2522.1,2522.0,0.199]
[1730463359835,4.51494,2522.1,2522.0,0.24835935]
[1730463361097,8.02588245,2522.1,2522.0,0.24835935]
[1730463361376,8.02588245,2522.1,2522.0,0.199]
[1730463362957,8.02588245,2522.1,2522.0,0.24839698]
[1730463366678,8.02588245,2522.1,2522.0,0.199]
[1730463367434,8.02588245,2522.1,2522.0,0.24839698]
[1730463367984,8.02588245,2522.1,2522.0,0.199]
[1730463374187,11.02588245,2522.1,2522.0,0.199]
[1730463411825,10.25788245,2522.1,2522.0,0.199]
[1730463412018,9.33284645,2522.1,2522.0,0.199]
[1730463419548,3.96494,2522.1,2522.0,0.9717]
[1730463419743,3.96494,2522.1,2522.0,1.01912373]
[1730463420243,5.78284645,2522.1,2522.0,1.01912373]
[1730463420785,6.33284645,2522.1,2522.0,1.01912373]
[1730463428904,3.96479,2522.2,2522.1,0.7694]
[1730463429273,3.96479,2522.2,2522.1,0.81618127]
[1730463429472,1.81790645,2522.5,2522.1,0.81618127]
[1730463429473,5.78236645,2522.5,2522.1,0.81618127]
[1730463429674,3.96459,2522.4,2522.1,0.7694]
[1730463429897,3.96459,2522.4,2522.3,0.7694]
[1730463430217,3.96439,2522.5,2522.3,0.7694]
[1730463430367,1.81790645,2522.7,2522.3,0.7694]
[1730463430368,3.96428,2522.6,2522.3,0.81603209]
[1730463430569,3.96446,2522.5,2522.3,0.7694]
[1730463430797,3.96446,2522.5,2522.2,0.493347]
[1730463430798,3.96446,2522.5,2522.4,0.04655751]
[1730463430966,3.96446,2522.5,2522.4,0.86185751]
[1730463431169,3.96419,2522.6,2522.4,0.86185751]
[1730463431372,7.92845,2522.6,2522.4,0.8153]
[1730463431610,8.47845,2522.6,2522.5,0.86178293]
[1730463431984,4.51419,2522.6,2522.5,0.86178293]
[1730463432469,5.78191645,2522.7,2522.5,0.86178293]
[1730463432674,3.96401,2522.7,2522.5,0.86178293]
[1730463432874,3.96385,2522.8,2522.5,0.52912122]
[1730463433176,3.96385,2522.8,2522.6,0.7916]
[1730463433380,3.96385,2522.8,2522.6,0.83791333]
[1730463434200,3.964,2522.7,2522.6,0.83791333]
[1730463438488,5.78190645,2522.7,2522.6,0.83791333]
[1730463438817,7.3064821,2522.7,2522.6,0.04631333]
[1730463439221,3.96447,2522.4,2522.3,0.8249]
[1730463439602,3.96447,2522.4,2522.3,0.87126951]
[1730463443524,5.48914265,2522.4,2522.3,0.04636951]
[1730463443692,5.48914265,2522.4,2522.0,0.199]
[1730463443898,5.78284645,2522.1,2522.0,0.199]
[1730463444537,6.33284645,2522.1,2522.0,0.199]
[1730463444709,7.44081309,2522.1,2522.0,0.199]
[1730463449646,7.44081309,2522.1,2522.0,0.24428566]
[1730463454743,7.44081309,2522.1,2522.0,0.199]
[1730463456418,11.19081309,2522.1,2522.0,0.199]
[1730463466264,1.81790645,2521.4,2521.1,0.8176]
[1730463466445,3.0,2522.0,2521.1,0.8176]
[1730463466446,5.78426645,2521.2,2521.1,0.8176]
[1730463467667,3.96636,2521.2,2521.1,0.8176]
[1730463474755,6.33426645,2521.2,2521.1,0.8176]
[1730463474953,3.96684,2520.9,2520.6,0.8004]
[1730463475173,3.96684,2520.9,2520.6,1.673941]
[1730463476451,3.96684,2520.9,2520.6,0.8004]
[1730463477953,3.96715,2520.7,2520.6,0.8004]
[1730463479670,3.96715,2520.7,2520.6,0.84492336]
[1730463482123,3.96715,2520.7,2520.6,0.86549452]
[1730463485184,3.96699,2520.8,2520.6,0.86549452]
[1730463485512,3.96715,2520.7,2520.6,0.86549452]
[1730463485684,3.96676,2521.0,2520.6,0.86549452]
[1730463485888,3.96654,2521.1,2520.8,0.7791]
[1730463486122,3.96654,2521.1,2520.9,0.7791]
[1730463486336,11.41623,2521.3,2520.9,0.7791]
[1730463486495,3.96642,2521.2,2520.9,0.7791]
[1730463486824,3.96659,2521.1,2520.9,0.7791]
[1730463487975,3.96642,2521.2,2520.9,0.7791]
[1730463488435,3.96652,2521.1,2520.9,0.7791]
[1730463489130,3.96642,2521.2,2520.9,0.7791]
[1730463489807,7.93293,2521.2,2520.9,0.7791]
[1730463490208,3.96646,2521.2,2520.9,0.7791]
[1730463492121,7.93293,2521.2,2520.9,0.7791]
[1730463492630,3.96653,2521.1,2520.9,0.7791]
[1730463493212,4.51617,2521.4,2520.9,0.7791]
[1730463493444,7.93291,2521.2,2520.9,0.7791]
[1730463493648,3.96643,2521.2,2520.9,1.43549865]
[1730463493824,3.96643,2521.2,2521.0,0.7676]
[1730463494427,0.55,2521.4,2521.0,0.7676]
[1730463494655,3.9662,2521.3,2521.0,0.7676]
[1730463494830,3.96644,2521.2,2521.0,0.7676]
[1730463495021,3.96652,2521.1,2521.0,0.7676]
[1730463496567,3.96624,2521.3,2521.0,0.7676]
[1730463496949,3.96637,2521.2,2521.0,0.7676]
[1730463499661,7.93284,2521.2,2521.0,0.7676]
[1730463500155,3.96637,2521.2,2521.0,0.7676]
[1730463500326,7.93285,2521.2,2521.0,0.7676]
[1730463500529,3.96637,2521.2,2521.0,0.7676]
[1730463501139,3.96652,2521.1,2521.0,0.7676]
[1730463501344,2.64860645,2521.5,2521.0,0.7676]
[1730463501569,2.64860645,2521.5,2521.0,4.78302]
[1730463501570,3.96595,2521.5,2521.0,4.78302]
[1730463501725,3.96595,2521.5,2521.0,0.8165]
[1730463501726,3.96619,2521.4,2521.0,0.8165]
[1730463502878,3.96637,2521.2,2521.0,0.8165]
[1730463503033,4.73183,2521.4,2521.0,0.8165]
[1730463503366,3.96647,2521.2,2521.0,0.8165]
[1730463504289,4.51636,2521.3,2521.0,0.8165]
[1730463505978,6.55282645,2521.5,2521.0,0.8165]
[1730463506153,3.96607,2521.4,2521.0,0.8165]
[1730463506471,1.81790645,2521.5,2521.1,3.9665]
[1730463506675,4.51585,2521.6,2521.1,3.9665]
[1730463506980,4.993649,2521.6,2521.1,3.9665]
[1730463507363,8.959489,2521.6,2521.1,3.9665]
[1730463507738,3.96597,2521.5,2521.0,4.78303]
[1730463507938,5.78390645,2521.5,2521.0,4.78303]
[1730463508247,6.861662,2521.5,2521.1,3.96652]
[1730463508456,1.81790645,2522.2,2521.5,3.96581]
[1730463508638,1.81790645,2522.2,2521.6,0.7686]
[1730463508949,1.81790645,2522.2,2521.8,3.9653]
[1730463510280,5.78270645,2522.2,2521.8,3.9653]
[1730463510580,1.81790645,2522.2,2521.9,0.7761]
[1730463510749,0.55,2522.3,2521.9,4.74136]
[1730463510940,4.51464,2522.3,2521.9,4.74136]
[1730463511276,0.55,2522.3,2521.9,4.74136]
[1730463511435,0.55,2522.3,2522.0,3.96508]
[1730463511772,0.55,2522.3,2522.0,3.96498]
[1730463511984,0.55,2522.4,2522.0,3.96498]
[1730463512278,3.96433,2522.5,2522.1,0.7568]
[1730463512846,4.94276888,2522.5,2522.1,0.7568]
[1730463516156,0.97843888,2522.5,2522.1,0.7568]
[1730463516449,0.55,2522.5,2522.1,0.7568]
[1730463518163,0.55,2522.6,2522.2,3.96478]
[1730463518682,0.55,2522.6,2522.1,4.72174]
[1730463519470,0.55,2522.6,2522.2,3.96477]
[1730463519803,0.55,2522.6,2522.1,4.72174]
[1730463520300,0.55,2522.6,2522.1,8.6866]
[1730463520714,0.55,2522.6,2522.1,4.72166]
[1730463521210,4.72695,2522.9,2522.3,0.772]
[1730463521415,3.9635,2523.1,2522.4,0.772]
[1730463521601,3.96337,2523.1,2522.5,3.96431]
[1730463521913,0.473287,2523.0,2522.4,4.73633]
[1730463522071,0.473287,2523.0,2522.5,3.96423]
[1730463522404,0.473287,2523.0,2522.7,0.8252]
[1730463522808,0.55,2522.9,2522.7,0.8252]
[1730463523510,0.7695,2523.2,2522.7,4.78919]
[1730463523676,1.24277,2523.2,2522.7,4.78919]
[1730463524072,1.24277,2523.2,2522.7,0.8252]
[1730463524073,5.206,2523.2,2522.7,0.8252]
[1730463524599,4.4365,2523.2,2522.7,4.78919]
[1730463525107,0.55,2523.1,2522.7,4.78919]
[1730463525405,0.55,2523.3,2522.8,3.96383]
[1730463525613,2.44148548,2523.3,2522.7,0.8252]